Cogmind - Beta 16 @@@ ROGUE MODE // 2025.12.29 @ 14:49:19 Player: Jiyva Result: Destroyed by Y-54 Guardian with Flak Gun Performance ------------- Evolutions (4) 2000 Regions Visited (9) 1800 Robots Destroyed (33) 165 Value Destroyed (1429) 1429 Prototype IDs (0) 0 Alien Tech Used (0) 0 Bonus (0) 0 TOTAL SCORE: 5394 Bonus ------- None Cogmind --------- Core Integrity 0/850 Matter 289/300 Energy 99/100 System Corruption 8% Temperature Cool (6) Movement Core (50) Location -6/Extension Parts ------- > --- POWER (2) -------- (None) > --- PROPULSION (6) --- (None) > --- UTILITY (2) ------ (None) > --- WEAPON (5) ------- (None) > --- INVENTORY (5) ---- Large Matter Pod (66) Phase Shifter Peak State ------------ > --- POWER ------------ Micro Nuclear Core Light Antimatter Reactor > --- PROPULSION ------- Carbon-fiber Leg Improved Titanium Leg Improved Gravmag System > --- UTILITY ---------- Transmission Jammer Improved Light Armor Plating > --- WEAPON ----------- Field Laser High-powered Shotgun Heavy Machine Gun Heavy Machine Gun Proton Missile Launcher > --- INVENTORY -------- Large Matter Pod Heavy Machine Gun [Rating: 50] Favorites ----------- Power Ion Engine Engine Ion Engine Power Core Micro Nuclear Core Reactor Light Antimatter Reactor Propulsion Light Treads Treads Light Treads Leg Improved Titanium Leg Wheel Armored Wheel Hover Unit Gravmag System Flight Unit Xenon Bombardment Thruster Utility Transmission Jammer Device Transmission Jammer Protection Improved Light Armor Plating Weapon High-powered Shotgun Energy Gun Heavy Laser Ballistic Gun High-powered Shotgun Launcher Mini Grenade Launcher Slashing Weapon Axe Build | -11 -10 -10 -10 -8 -7 -7 -7 -6 -6 ------- Run | Yrd Mat Min Sub Mat Fac Low Low Fac Ext Slots Evolved 8 | . . . . 4 2 . . 2 . Power 1 | . . . . . 1 . . . . Propulsion 4 | . . . . 2 1 . . 1 . Utility . | . . . . . . . . . . Weapon 3 | . . . . 2 . . . 1 . Parts Attached 51 | 6 . . 3 5 18 1 . 18 . Power 5 | 1 . . 1 . 1 . . 2 . Engine 3 | 1 . . 1 . 1 . . . . Core 1 | . . . . . . . . 1 . Reactor 1 | . . . . . . . . 1 . Propulsion 21 | 2 . . . 4 7 1 . 7 . Treads 8 | 2 . . . 4 2 . . . . Leg 4 | . . . . . . 1 . 3 . Wheel 3 | . . . . . 1 . . 2 . Hover 5 | . . . . . 3 . . 2 . Flight 1 | . . . . . 1 . . . . Utility 6 | . . . 1 . 3 . . 2 . Device 3 | . . . 1 . 1 . . 1 . Storage . | . . . . . . . . . . Processor . | . . . . . . . . . . Hackware . | . . . . . . . . . . Protection 3 | . . . . . 2 . . 1 . Artifact . | . . . . . . . . . . Weapon 19 | 3 . . 1 1 7 . . 7 . Energy Gun 6 | 2 . . 1 . . . . 3 . Energy Cannon . | . . . . . . . . . . Ballistic Gun 10 | 1 . . . . 6 . . 3 . Ballistic Cannon . | . . . . . . . . . . Launcher 2 | . . . . . 1 . . 1 . Special Weapon . | . . . . . . . . . . Impact Weapon . | . . . . . . . . . . Slashing Weapon 1 | . . . . 1 . . . . . Piercing Weapon . | . . . . . . . . . . Special Melee Weapon . | . . . . . . . . . . Unidentified Prototypes . | . . . . . . . . . . Parts Lost 39 | . . . 2 4 3 7 . 21 2 Power 2 | . . . . . . 1 . 1 . Propulsion 20 | . . . . 3 3 4 . 8 2 Utility 5 | . . . . 1 . 1 . 3 . Weapon 12 | . . . 2 . . 1 . 9 . Highest Loss Streak 7 | . . . 2 2 2 5 . 7 2 To Critical Strikes . | . . . . . . . . . . Average Backups 3 | . 1 3 4 4 4 3 3 2 2 Power . | . 1 1 1 1 . . . . . Propulsion . | . . . 1 . . 1 1 . . Utility . | . . . . . . . . 1 2 Weapon 2 | . . 1 1 3 3 2 2 1 . Tool/Special . | . . . . . . . . . . Unused Backups 7 | . . . . 1 1 1 . 2 2 Power . | . . . . . . . . . . Propulsion 1 | . . . . 1 . . . . . Utility 2 | . . . . . . . . . 2 Weapon 4 | . . . . . 1 1 . 2 . Tool/Special . | . . . . . . . . . . Average Slot Usage (%) 59 | . 71 71 67 39 71 57 53 55 8 Engine 4 | . 14 14 11 . 6 4 . . . Core 1 | . . . . . . . . 3 . Treads 10 | . 28 28 28 29 13 8 7 1 . Leg 4 | . . . . . . . 7 10 5 Wheel 1 | . . . . . 4 1 . . . Hover 3 | . . . . . 5 2 . 6 2 Device 5 | . . . 11 1 1 7 7 8 . Protection 2 | . . . . . 9 1 . 2 . Energy Gun 3 | . 14 14 14 2 . . . 4 . Ballistic Gun 12 | . 14 14 1 . 11 22 23 10 . Launcher 3 | . . . . . 6 7 7 1 . Slashing Weapon 1 | . . . . 6 4 . . 2 . Peak Build Rating 50 | 5 5 5 5 12 36 38 24 50 9 Average Rating 23 | 3 5 5 4 9 26 24 24 32 5 On Entrance 12 | . 5 5 5 4 11 35 24 24 9 Avg Prop Armor Cover (%) 18 | . . . 32 41 15 8 10 10 31 Naked Turns 7 | . . . . . . . . . 7 Heaviest Build 36 | 9 9 9 9 3 36 25 12 33 . Greatest Support 50 | 40 40 40 40 40 48 48 15 50 3 Greatest Overweight (x) . | . . . . . . . . . . Average Overweight (x) . | . . . . . . . . . . Largest Inventory Capacity 5 | 5 5 5 5 5 5 5 5 5 5 Average Capacity 5 | 5 5 5 5 5 5 5 5 5 5 Most Carried 5 | 2 2 4 5 5 5 4 3 5 2 Average Carried 3 | . 1 3 4 4 4 3 3 2 2 Final Capacity 5 | 5 5 5 5 5 5 5 5 5 5 Final Carried 5 | 1 2 4 5 5 5 3 3 2 2 Class Distribution -------------------- 42% | Mutant 25% | Gunner 11% | Tank 10% | Scavenger-Mutant 9% | Scavenger-Tank Dominant Class ---------------- Mutant | -10/Materials Mutant | -10/Mines Mutant | -10/Subcaves Mutant | -8/Materials Tank | -7/Factory Gunner | -7/Lower Caves Gunner | -7/Lower Caves Mutant | -6/Factory Mutant | -6/Extension Resources | -11 -10 -10 -10 -8 -7 -7 -7 -6 -6 ----------- Run | Yrd Mat Min Sub Mat Fac Low Low Fac Ext Matter Collected 1353 | 250 . 37 40 2 118 263 . 643 . Remotely . | . . . . . . . . . . Salvage Created 1237 | . . 97 118 54 118 119 . 731 . Parts 59 | . . 3 13 4 11 2 . 26 . Haulers Intercepted 1 | . . . . 1 . . . . . Recyclers Shooed . | . . . . . . . . . . Parts Field Recycled . | . . . . . . . . . . Retrieved Matter . | . . . . . . . . . . Parts Self-Destructed 13 | . . . 11 . . 2 . . . Prevented 5 | . . . . . . 5 . . . Parts Restored . | . . . . . . . . . . Kills | -11 -10 -10 -10 -8 -7 -7 -7 -6 -6 ------- Run | Yrd Mat Min Sub Mat Fac Low Low Fac Ext Combat Hostiles Destroyed 30 | . . 2 5 . 3 6 . 14 . Melee 1 | . . . . . . . . 1 . Guns 25 | . . 2 5 . 3 4 . 11 . AOE 4 | . . . . . . 2 . 2 . Classes Destroyed 7 | . . 1 2 1 1 . . 2 . Builder 1 | . . . . . . . . 1 . Hauler 1 | . . . . 1 . . . . . Mechanic 1 | . . . . . . . . 1 . Swarmer 6 | . . . 4 . . 2 . . . Grunt 14 | . . 2 . . . 3 . 9 . Sentry 5 | . . . 1 . 1 1 . 2 . Programmer 5 | . . . . . 2 . . 3 . Best Kill Streak 5 | . . 2 4 1 1 5 . 4 . Combat Bots Only 5 | . . 2 4 . 1 5 . 4 . Max Kills in Single Turn 2 | . . 1 1 1 1 1 . 2 . Gunslinging . | . . . . . . . . . . Exploded 2 | . . . . . . 1 . 2 . Melee 1 | . . . . . . . . 1 . Uniques/NPCs Destroyed . | . . . . . . . . . . Combat | -11 -10 -10 -10 -8 -7 -7 -7 -6 -6 -------- Run | Yrd Mat Min Sub Mat Fac Low Low Fac Ext Hostile Shots Fired 721 | . . 12 49 72 82 124 . 310 72 Missed 243 | . . 3 18 28 24 36 . 106 28 Hits 478 | . . 9 31 44 58 88 . 204 44 Projectile 478 | . . 9 31 44 58 88 . 204 44 Critical Strikes 7 | . . . . . 2 . . 4 1 Damage Taken 5582 | . . 136 328 765 511 937 . 2335 570 Core 1376 | . . 60 57 213 58 137 . 402 449 Absorbed by Shields . | . . . . . . . . . . Ignored by Resistances 55 | . . . . . 4 51 . . . Core Remaining (%) 71 | 100 . . 53 61 . . 72 . . Volleys Fired 85 | . 1 8 12 . 7 11 . 46 . Largest 4 | . 2 2 2 . 3 4 . 4 . Hottest 159 | . 60 60 60 . 81 111 . 159 . Shots Fired 205 | . 2 16 17 . 18 35 . 117 . Gun 202 | . 2 16 17 . 18 33 . 116 . Cannon . | . . . . . . . . . . Launcher 3 | . . . . . . 2 . 1 . Special . | . . . . . . . . . . Kinetic 160 | . 1 8 5 . 18 33 . 95 . Thermal 30 | . . . 9 . . . . 21 . Explosive 2 | . . . . . . 2 . . . Electromagnetic 13 | . 1 8 3 . . . . 1 . Robot Hit Streak 8 | . 1 5 8 . 8 8 . 8 . Robot Miss Streak 10 | . 1 2 3 . 3 10 . 7 . Penetration Max 1 | . . . . . 1 . . . . Secondary Targets 3 | . . . . . . . . 3 . Max Gunslinging Chain 1 | . . . . . . . . 1 . Shots Hit Robots 146 | . 1 10 11 2 20 27 . 75 . Core Hits 89 | . . 5 6 1 12 24 . 41 . Critical Kills . | . . . . . . . . . . Critical Parts Destroyed . | . . . . . . . . . . Critical Strikes 1 | . . . . . . . . 1 . Sever 1 | . . . . . . . . 1 . Melee Attacks 14 | . . . . 2 6 . . 6 . Impact . | . . . . . . . . . . Slashing 14 | . . . . 2 6 . . 6 . Piercing . | . . . . . . . . . . Sneak Attacks 2 | . . . . 1 . . . 1 . Combat Hostiles . | . . . . . . . . . . Follow-up Attacks . | . . . . . . . . . . Damage Inflicted 3967 | . 11 128 152 103 516 628 . 2429 . Guns 2754 | . 11 128 152 . 378 497 . 1588 . Cannons . | . . . . . . . . . . Explosions 792 | . . . . . . 131 . 661 . Melee 407 | . . . . 102 128 . . 177 . Ramming 14 | . . . . 1 10 . . 3 . Kinetic 2284 | . 11 35 53 . 378 497 . 1310 . Thermal 357 | . . . 79 . . . . 278 . Explosive 677 | . . . . . . 131 . 546 . Electromagnetic 228 | . . 93 20 . . . . 115 . Impact . | . . . . . . . . . . Slashing 407 | . . . . 102 128 . . 177 . Piercing . | . . . . . . . . . . Highest Corruption 8 | . . . . . 1 1 1 8 8 Average Corruption 1 | . . . . . 1 1 1 2 8 Corruption Purged . | . . . . . . . . . . Corruption Blocked . | . . . . . . . . . . Effects 30 | . . . . . . 12 1 15 2 Message Errors 7 | . . . . . . 4 . 3 . Matter Fused 3 | . . . . . . . . 3 . Heat Flow Errors 5 | . . . . . . 1 . 2 2 Energy Discharges 5 | . . . . . . 2 1 2 . Data Loss (minor) 6 | . . . . . . 4 . 2 . Misfires 1 | . . . . . . . . 1 . Alerts 2 | . . . . . . 1 . 1 . Weapon Failures 1 | . . . . . . . . 1 . Overload Shots . | . . . . . . . . . . Overflow Damage 51 | . . . . . . . . 51 . Projectiles . | . . . . . . . . . . Explosions 51 | . . . . . . . . 51 . Melee . | . . . . . . . . . . Knockbacks . | . . . . . . . . . . Impact . | . . . . . . . . . . Kinetic . | . . . . . . . . . . Secondary . | . . . . . . . . . . Self-Inflicted Damage . | . . . . . . . . . . Shots . | . . . . . . . . . . Rammed 5 | . . . . 4 1 . . . . Targets Rammed 6 | . . . . 4 1 . . 1 . Kicked 1 | . . . . . . . . 1 . Crushed . | . . . . . . . . . . Highest Temperature 416 | . . 78 . . 90 180 . 416 258 Average Temperature 109 | . . 46 . . 39 39 . 151 115 Received Heat Transfer 1398 | . . 78 51 225 84 243 . 594 123 Effects 3 | . . . . . . . . 3 . Shutdowns 1 | . . . . . . . . 1 . Energy Bleed 1 | . . . . . . . . 1 . Short Circuit 1 | . . . . . . . . 1 . Siege Activations . | . . . . . . . . . . Martial Activations . | . . . . . . . . . . Shielding Activations . | . . . . . . . . . . Robots Disrupted . | . . . . . . . . . . Combat Hostiles . | . . . . . . . . . . Robots Corrupted . | . . . . . . . . . . Combat Hostiles . | . . . . . . . . . . Parts Fried . | . . . . . . . . . . Impact Corruptions . | . . . . . . . . . . Robots Melted . | . . . . . . . . . . Combat Hostiles . | . . . . . . . . . . Parts Melted 1 | . . . . . . . . 1 . Heat Transferred 656 | . . . 175 . . . . 481 . Parts Sabotaged . | . . . . . . . . . . Parts Stolen . | . . . . . . . . . . Parts Stripped . | . . . . . . . . . . Power Chain Reactions . | . . . . . . . . . . Alert | -11 -10 -10 -10 -8 -7 -7 -7 -6 -6 ------- Run | Yrd Mat Min Sub Mat Fac Low Low Fac Ext Maximum Alert Level 1 | . . . . . . . . 1 . Low Security (%) 98 | 100 100 100 . 100 100 . . 96 100 Level 1 1 | . . . . . . . . 3 . Level 2 . | . . . . . . . . . . Level 3 . | . . . . . . . . . . Level 4 . | . . . . . . . . . . Level 5 . | . . . . . . . . . . High Security . | . . . . . . . . . . Max Security . | . . . . . . . . . . Peak Influence 216 | . . 55 . 61 30 . . 216 35 Initial 22 | . . . . . 22 . . . . Average 40 | . . 16 . 38 5 . . 68 8 Influence Increases 1179 | . . 65 130 170 125 150 . 494 45 Destroy 0b10 Robot/C 600 | . . 40 100 . 60 120 . 280 . Destroy 0b10 Robot/NC 15 | . . . . 5 . . . 10 . Destroy Leader 112 | . . 10 . 2 30 . . 70 . Successful Hack 39 | . . . . 28 5 . . 6 . Disable Machine 75 | . . 15 . . . . . 60 . Destroy Structure 23 | . . . . . . . . 23 . Partial Spotted 45 | . . . . 30 15 . . . . Lose Combat Pursuer 270 | . . . 30 105 15 30 . 45 45 Influence Decreases 1154 | . . 65 130 120 175 150 . 494 20 Entered New Map 28 | . . . . . 28 . . . . Time Decay 848 | . . 65 120 80 140 100 . 333 10 Lost Part 278 | . . . 10 40 7 50 . 161 10 Squads Dispatched 11 | . 1 . . 2 3 . . 5 . Investigation 3 | . . . . 2 . . . 1 . Extermination 5 | . . . . . 2 . . 3 . Reinforcement 3 | . 1 . . . 1 . . 1 . Assault . | . . . . . . . . . . Garrison . | . . . . . . . . . . Intercept . | . . . . . . . . . . Searches Triggered . | . . . . . . . . . . Construction Impeded . | . . . . . . . . . . Haulers Reinforced 1 | . . . . . . . . 1 . Active Scanning Responses . | . . . . . . . . . . Cargo Convoy Interrupts 1 | . . . . . . . . 1 . Stealth | -11 -10 -10 -10 -8 -7 -7 -7 -6 -6 --------- Run | Yrd Mat Min Sub Mat Fac Low Low Fac Ext Distress Signals 1 | . . . . 1 . . . . . Communications Jammed 11 | . . . . . 1 . . 10 . Distress Signals 10 | . . . . . . . . 10 . Times Spotted 86 | . 1 2 7 18 9 8 3 31 7 Peak Tracking Total 11 | . 1 1 6 11 3 4 3 11 4 Tactical Retreats 14 | . . . 2 5 1 2 . 3 1 Traps | -11 -10 -10 -10 -8 -7 -7 -7 -6 -6 ------- Run | Yrd Mat Min Sub Mat Fac Low Low Fac Ext Traps Triggered 2 | . . . . 1 . . . 1 . Indirectly . | . . . . . . . . . . Trap Hack Attempts . | . . . . . . . . . . Triggered . | . . . . . . . . . . Disarmed . | . . . . . . . . . . Reprogrammed . | . . . . . . . . . . Reused . | . . . . . . . . . . Traps Extracted . | . . . . . . . . . . Installed . | . . . . . . . . . . Triggered . | . . . . . . . . . . Machines | -11 -10 -10 -10 -8 -7 -7 -7 -6 -6 ---------- Run | Yrd Mat Min Sub Mat Fac Low Low Fac Ext Machines Disabled 5 | . . 1 . . . . . 4 . Max in Single Turn 2 | . . 1 . . . . . 2 . Machines Repaired . | . . . . . . . . . . Machines Dismantled . | . . . . . . . . . . Machines Sabotaged . | . . . . . . . . . . Overloaded Fab Kills . | . . . . . . . . . . Hacking | -11 -10 -10 -10 -8 -7 -7 -7 -6 -6 --------- Run | Yrd Mat Min Sub Mat Fac Low Low Fac Ext Machines Accessed 13 | . 2 . . 3 3 . . 5 . Terminals 8 | . 2 . . 2 1 . . 3 . Fabricators . | . . . . . . . . . . Repair Stations 1 | . . . . . . . . 1 . Recycling Units . | . . . . . . . . . . Scanalyzers 1 | . . . . . 1 . . . . Garrison Access 3 | . . . . 1 1 . . 1 . Total Hacks 31 | . 4 . . 10 5 . . 12 . Successful 11 | . 1 . . 3 1 . . 6 . Failed 20 | . 3 . . 7 4 . . 6 . Catastrophic 3 | . 2 . . . 1 . . . . Database Lockouts . | . . . . . . . . . . Manual 23 | . 4 . . 6 4 . . 9 . Terminals 18 | . 4 . . 6 2 . . 6 . Fabricators . | . . . . . . . . . . Repair Stations 4 | . . . . . . . . 4 . Recycling Units . | . . . . . . . . . . Scanalyzers 1 | . . . . . 1 . . . . Garrison Access 8 | . . . . 4 2 . . 2 . Terminal Hacks . | . . . . . . . . . . Fabricator Hacks . | . . . . . . . . . . Repair Station Hacks . | . . . . . . . . . . Recycling Unit Hacks . | . . . . . . . . . . Scanalyzer . | . . . . . . . . . . Garrison Access Hacks . | . . . . . . . . . . Unauthorized Hacks 11 | . 1 . . 3 1 . . 6 . Terminals 7 | . 1 . . 3 . . . 3 . Track 5 | . 1 . . 2 . . . 2 . Operators 2 | . . . . 1 . . . 1 . Fabricators . | . . . . . . . . . . Repair Stations 1 | . . . . . . . . 1 . Mechanics 1 | . . . . . . . . 1 . Recycling Units . | . . . . . . . . . . Scanalyzers . | . . . . . . . . . . Garrison Access 3 | . . . . . 1 . . 2 . Broadcast 1 | . . . . . . . . 1 . Watchers 2 | . . . . . 1 . . 1 . Data Cores Recovered . | . . . . . . . . . . Used . | . . . . . . . . . . Hacking Detections 13 | . 2 . . 3 3 . . 5 . Full Trace Events 1 | . . . . 1 . . . . . Feedback Events . | . . . . . . . . . . Feedback Blocked . | . . . . . . . . . . Robot Schematics Acquired . | . . . . . . . . . . Robots Built . | . . . . . . . . . . Authchips . | . . . . . . . . . . Time . | . . . . . . . . . . Total Robot Build Rating . | . . . . . . . . . . Part Schematics Acquired . | . . . . . . . . . . Parts Built . | . . . . . . . . . . Authchips . | . . . . . . . . . . Time . | . . . . . . . . . . Total Part Build Rating . | . . . . . . . . . . Part Studies Acquired . | . . . . . . . . . . Parts Repaired . | . . . . . . . . . . Time . | . . . . . . . . . . Parts Recycled . | . . . . . . . . . . Recycled Matter . | . . . . . . . . . . Retrieved Matter . | . . . . . . . . . . Retrieved Components . | . . . . . . . . . . Parts Scanalyzed . | . . . . . . . . . . Part Schematics Acquired . | . . . . . . . . . . Parts Damaged . | . . . . . . . . . . Bothacking | -11 -10 -10 -10 -8 -7 -7 -7 -6 -6 ------------ Run | Yrd Mat Min Sub Mat Fac Low Low Fac Ext Used RIF Installer . | . . . . . . . . . . Robots Hacked . | . . . . . . . . . . Non-combat . | . . . . . . . . . . Combat . | . . . . . . . . . . Robot Hacks Applied . | . . . . . . . . . . Relay Couplers Released . | . . . . . . . . . . Fabnet Peak Effective % . | . . . . . . . . . . Robots Rewired . | . . . . . . . . . . Allies Hacked . | . . . . . . . . . . Hacks Repelled . | . . . . . . . . . . Allies | -11 -10 -10 -10 -8 -7 -7 -7 -6 -6 -------- Run | Yrd Mat Min Sub Mat Fac Low Low Fac Ext Total Allies . | . . . . . . . . . . Largest Group . | . . . . . . . . . . Highest-Rated Group . | . . . . . . . . . . Highest-Rated Ally . | . . . . . . . . . . Total Orders . | . . . . . . . . . . Ally Attacks . | . . . . . . . . . . Total Damage . | . . . . . . . . . . Kills . | . . . . . . . . . . Allies Corrupted . | . . . . . . . . . . Allies Melted . | . . . . . . . . . . Intel | -11 -10 -10 -10 -8 -7 -7 -7 -6 -6 ------- Run | Yrd Mat Min Sub Mat Fac Low Low Fac Ext Active Infowar (turns) 1002 | . . . . . 142 160 . 700 . Jamming 1002 | . . . . . 142 160 . 700 . Robot Analysis Total . | . . . . . . . . . . Derelict Logs Recovered 1 | . . . . . . 1 . . . Drone Launches . | . . . . . . . . . . Drone Recoveries . | . . . . . . . . . . Exploration | -11 -10 -10 -10 -8 -7 -7 -7 -6 -6 ------------- Run | Yrd Mat Min Sub Mat Fac Low Low Fac Ext Turns Passed 4319 | 78 116 250 292 162 761 1068 40 1499 53 Spaces Moved 3076 | 48 71 141 246 275 576 660 34 920 105 Core 616 | 9 . . 129 274 87 . . 12 105 Treads 1196 | 39 71 141 117 1 268 559 . . . Legs 680 | . . . . . . 101 34 545 . Wheels . | . . . . . . . . . . Hover 584 | . . . . . 221 . . 363 . Flight . | . . . . . . . . . . Fastest Speed 50 | 50 160 160 50 50 50 120 120 50 50 Average Speed 115 | 139 160 160 102 50 110 153 120 108 50 Slowest Speed 160 | 160 160 160 160 160 160 160 120 130 50 Overloaded Moves . | . . . . . . . . . . Propulsion Burnouts . | . . . . . . . . . . Robots Hopped . | . . . . . . . . . . Potential Cave-ins . | . . . . . . . . . . Cave-ins Triggered . | . . . . . . . . . . Exploration Rate (%) 25 | 4 16 26 15 44 15 78 12 22 27 Regions Visited 9 Branch Regions 5 Pre-discovered Areas . | . . . . . . . . . . Known Exits Taken . | . . . . . . . . . . Unknown Exits Taken 9 | 1 1 1 1 1 1 1 1 1 . Scrap Searched . | . . . . . . . . . . Spaces Dug . | . . . . . . . . . . Terrain Destroyed 56 | . . . . . . 21 . 35 . Melee . | . . . . . . . . . . Projectile . | . . . . . . . . . . AOE 56 | . . . . . . 21 . 35 . Terrain Rammed . | . . . . . . . . . . Walls Destroyed . | . . . . . . . . . . Machines Disabled . | . . . . . . . . . . Actions | -11 -10 -10 -10 -8 -7 -7 -7 -6 -6 --------- Run | Yrd Mat Min Sub Mat Fac Low Low Fac Ext Total 3650 | 57 72 150 268 292 668 687 33 1318 105 Wait 373 | . . . 6 . 50 12 . 305 . Move 3067 | 47 70 140 245 274 575 659 33 919 105 Hop . | . . . . . . . . . . Pick Up 23 | 2 1 2 1 4 4 1 . 8 . Fast Attach 34 | 6 . . 1 3 9 1 . 14 . Attach 19 | . . . 1 2 6 2 . 8 . Detach 4 | . . . 1 . 1 . . 2 . Swap 7 | . . . 1 . 4 . . 2 . Drop 18 | 2 . . . 3 5 1 . 7 . Fire 85 | . 1 8 12 . 7 11 . 46 . Melee 14 | . . . . 2 6 . . 6 . Ram . | . . . . . . . . . . Kick 1 | . . . . . . . . 1 . Crush 5 | . . . . 4 1 . . . . Escape Stasis . | . . . . . . . . . . Rewire . | . . . . . . . . . . Trap . | . . . . . . . . . . Miscellaneous . | . . . . . . . . . . Route ------- -11/Scrapyard -10/Materials -10/Mines -10/Subcaves -8/Materials -7/Factory -7/Lower Caves -7/Lower Caves -6/Factory -6/Extension History --------- Turn | Location | Event 14 | -11/Scrapyard | Discovered new exit (range 15) 79 | -11/Scrapyard | Entered Materials 132 | -10/Materials | Discovered new exit (range 6) 195 | -10/Materials | Entered Mines 308 | -10/Mines | Build established: Mutant 333 | -10/Mines | Discovered new exit (range 9) 445 | -10/Mines | Entered Subcaves 720 | -10/Subcaves | Discovered new exit (range 13) 725 | -10/Subcaves | A swath of the cavern ceiling suddenly collapsed 737 | -10/Subcaves | Entered Materials 737 | -8/Materials | Evolved 4 slots: Propulsion x2, Weapon x2 896 | -8/Materials | Discovered new exit (range 6) 899 | -8/Materials | Entered Factory 899 | -7/Factory | Evolved 2 slots: Power x1, Propulsion x1 1268 | -7/Factory | Build established: Tank 1541 | -7/Factory | Discovered new exit (range 5) 1660 | -7/Factory | Entered Lower Caves 1794 | -7/Lower Caves | Attracted the attention of an 0b10 checkpoint 1857 | -7/Lower Caves | Lost 5 parts (4n1u) 2118 | -7/Lower Caves | Build established: Gunner 2140 | -7/Lower Caves | Spotted B-75 Beast 2644 | -7/Lower Caves | Discovered new exit (range 14) 2728 | -7/Lower Caves | Entered another Lower Caves area 2766 | -7/Lower Caves | Discovered new exit (range 3) 2768 | -7/Lower Caves | Entered Factory 2768 | -6/Factory | Evolved 2 slots: Propulsion x1, Weapon x1 3205 | -6/Factory | Build established: Mutant 3511 | -6/Factory | Lost 3 parts (1n2w) 3667 | -6/Factory | Lost 7 parts (3n1u3w) 3805 | -6/Factory | Discovered new exit (range 16) 4153 | -6/Factory | Cargo convoy interrupted 4267 | -6/Factory | Entered Extension 4279 | -6/Extension | Core integrity fell below 50% 4285 | -6/Extension | Lost 5 parts (1p1n2u1w) 4306 | -6/Extension | Spotted B-75 Beast 4311 | -6/Extension | Spotted B-75 Beast 4317 | -6/Extension | Core integrity fell below 20% 4320 | -6/Extension | Destroyed by Y-54 Guardian with Flak Gun Last Messages --------------- 04221_ Slug penetrates Garrison Access. 04223_ Hvy. Laser destroyed. 04228_ K-01 Serf cleans the TF Node. 04229_ Door malfunctions. 04233_ System corrupted: Component data lost. 04239_ Imp. Heat Sink destroyed. 04243_ Transmission Jammer destroyed. 04250_ PUYYQ6IM,> NSRXIVOGX%PN 04253_ Mic. Nuclear Core destroyed. 04254_ Wheel destroyed. LOCATION=UNKNOWN GOAL=ESCAPE 04278_ Critical hit (Burn: +37). 04282_ System corrupted: Heat flow error (+116). 04285_ Imp. Gravmag System destroyed. 04300_ System corrupted: Heat flow error (+295). 04313_ Machine disabled. 04313_ Imp. Titanium Leg destroyed. 04313_ Knocked back. 04316_ Machine disabled. Map ----- +----------------------------------------------------+ | ?????????????????????????????????????????????????? | | ?????????????????????????????????????????????????? | | ?????????????????????????????????????????????????? | | ?????????????????????????????????????????????????? | | ?????????????????????????????????????????????????? | | ?????????????????????????????????????????????????? | | ?????????????????????????????????????????????????? | | ?????????????????????????????????????????????????? | | ??????????? ?????????? ??????????????????????????? | | ??????????? ?????????? ??????????????????????????? | | ??????????? ?????????? ??????????????????????????? | | ??????????? ?????????? #?????????????????????????? | | ??????????? #????????? #?????????????????????????? | | ??????????# #????????# +?????????????????????????? | | ??????????# #????????# #?????????????????????????? | | ??????????# #????????# #?????????????????????????? | | ??????????# #????????# #?????????????????????????? | | ??????????# #????????# #?????????????????????????? | | ??????????# #?######?# ##????????????????????????? | | ????????### ### ## ### ##???????????????????????? | | ????????#"" "" Y Y "" ""#???????????????????????? | | ????????# " " #???????????????????????? | | ????????# #???????????????????????? | | ????##### #???????????????????????? | | ##### ## ##;######???????????????? | | k % @% ????????? | | % ????????? | | ????????? | | ?????????? | | ?????????? | | ######## BB BB ##############??????????? | | ???????## BB BB #???????????????????????? | | ????????# #???????????????????????? | | ????????# #???????????????????????? | | ????????# #???????????????????????? | | ????????######T#"""#######???????????????????????? | | ?????????????###?????????????????????????????????? | | ?????????????????????????????????????????????????? | | | | | | | | | | | | | | | | | | | | | | | | | +----------------------------------------------------+ Best States ------------- Heat Dissipation 51 Energy Generation 31 Energy Capacity 440 Matter Stores 300 Matter Capacity 300 Sight Range 16 Terrain Scan Density 10 Jamming Range 12 Armor Coverage 375 Resistance: TH 15 Evasion (%) 55 Recoil Reduction 3 Item Schematics ----------------- None Robot Schematics ------------------ None Fabricated ------------ Nothing Repaired ---------- Nothing Studied --------- None Alien Tech Used ----------------- None Achievements -------------- None Challenges ------------ None Game ------ Seed EtherialProjectileDeflector Manual? 0 Play Time 00:50:24 Cumulative 317.4 hours Start 2025.12.29 @ 01:07:50 End 2025.12.29 @ 14:49:19 Sessions 3 Manual Loads 0 Difficulty Rogue Special Mode None Game No. 84 Rogue 84 Adventurer 0 Explorer 0 Win Type - Total 0 Types 0/0/0/0/0/0/0/0/0/0 Lore% 31 Gallery% 55 Achievement% 30 Wizard Run 0 Options --------- Layout 0 ASCII 1 Keyboard 1 Movement Vi Keybinds 1 Fullscreen 1 Font 18/X11 Map View 76x50 Zoom Use 0% Tactical HUD 1 Map Filters NONE Filters NONE Steam 1 RUN: c2e6b3ec-f0bf-4ae2-be3d-f29db41ff82b